[Event "MČR v bleskovém šachu družstev 2019"]
[Site "Teplice, Czech Republic"]
[Date "2019.09.14"]
[Round "13.17"]
[White "Rubes, Jan"]
[Black "Formanek, Martin"]
[Result "1-0"]
[TimeControl "3 mim. + 2 s"]
[WhiteTitle "FM"]
[WhiteFideId "338176"]
[BlackFideId "316768"]
[WhiteElo "2316"]
[BlackElo "2230"]

1. Nf3 {[%clk 00:03:01]} {[%emt 00:00:02]} Nf6 {[%clk 00:03:03]} {[%emt
00:00:02]} 2. g3 {[%clk 00:03:02]} {[%emt 00:00:01]} g6 {[%clk 00:03:04]} 3. b3
{[%clk 00:03:04]} Bg7 {[%clk 00:03:05]} {[%emt 00:00:01]} 4. Bb2 {[%clk
00:03:05]} O-O {[%clk 00:03:06]} {[%emt 00:00:01]} 5. Bg2 {[%clk 00:03:06]} d6
{[%clk 00:03:07]} {[%emt 00:00:02]} 6. d4 {[%clk 00:03:07]} {[%emt 00:00:01]}
e5 {[%clk 00:03:08]} {[%emt 00:00:01]} 7. dxe5 {[%clk 00:03:07]} {[%emt
00:00:02]} Ng4 {[%clk 00:03:09]} {[%emt 00:00:01]} 8. Nc3 {[%clk 00:03:08]}
Nxe5 {[%clk 00:03:09]} {[%emt 00:00:02]} 9. Nxe5 {[%clk 00:03:07]} {[%emt
00:00:03]} dxe5 {[%clk 00:03:04]} {[%emt 00:00:07]} 10. Qxd8 {[%clk 00:03:03]}
{[%emt 00:00:06]} Rxd8 {[%clk 00:03:05]} {[%emt 00:00:01]} 11. Nd5 {[%clk
00:03:04]} Rd7 {[%clk 00:02:55]} {[%emt 00:00:12]} 12. O-O-O {[%clk 00:03:02]}
{[%emt 00:00:05]} Nc6 {[%clk 00:02:31]} {[%emt 00:00:25]} 13. e3 {[%clk
00:02:15]} {[%emt 00:00:48]} Kf8 {[%clk 00:02:18]} {[%emt 00:00:16]} 14. Rd2
{[%clk 00:02:08]} {[%emt 00:00:10]} Nd8 {[%clk 00:01:46]} {[%emt 00:00:33]} 15.
Ba3+ {[%clk 00:02:02]} {[%emt 00:00:08]} Ke8 {[%clk 00:01:47]} {[%emt
00:00:01]} 16. Rhd1 {[%clk 00:02:01]} {[%emt 00:00:03]} Ne6 {[%clk 00:01:40]}
{[%emt 00:00:09]} 17. Bh3 {[%clk 00:01:53]} {[%emt 00:00:09]} f5 {[%clk
00:01:33]} {[%emt 00:00:10]} 18. g4 {[%clk 00:01:20]} {[%emt 00:00:35]} Ng5
{[%clk 00:01:23]} {[%emt 00:00:12]} 19. Bg2 {[%clk 00:01:07]} {[%emt 00:00:14]}
c6 {[%clk 00:01:25]} 20. h4 {[%clk 00:00:48]} {[%emt 00:00:22]} Ne6 {[%clk
00:01:14]} {[%emt 00:00:13]} 21. gxf5 {[%clk 00:00:49]} {[%emt 00:00:02]} gxf5
{[%clk 00:01:14]} {[%emt 00:00:01]} 22. Nc3 {[%clk 00:00:42]} {[%emt 00:00:08]}
Rxd2 {[%clk 00:01:15]} {[%emt 00:00:02]} 23. Rxd2 {[%clk 00:00:43]} {[%emt
00:00:02]} e4 {[%clk 00:01:03]} {[%emt 00:00:13]} 24. Ne2 {[%clk 00:00:43]}
{[%emt 00:00:02]} Nc7 {[%clk 00:01:01]} {[%emt 00:00:04]} 25. Nf4 {[%clk
00:00:42]} {[%emt 00:00:03]} Be5 {[%clk 00:00:59]} {[%emt 00:00:04]} 26. Bd6
{[%clk 00:00:39]} {[%emt 00:00:05]} Bxd6 {[%clk 00:00:56]} {[%emt 00:00:05]} 27.
Rxd6 {[%clk 00:00:41]} {[%emt 00:00:01]} Ke7 {[%clk 00:00:53]} {[%emt
00:00:05]} 28. Rh6 {[%clk 00:00:41]} {[%emt 00:00:01]} Be6 {[%clk 00:00:46]}
{[%emt 00:00:09]} 29. Rxh7+ {[%clk 00:00:41]} {[%emt 00:00:02]} Kd6 {[%clk
00:00:46]} {[%emt 00:00:01]} 30. Rxc7 {[%clk 00:00:42]} Kxc7 {[%clk 00:00:46]}
{[%emt 00:00:03]} 31. Nxe6+ {[%clk 00:00:44]} Kd6 {[%clk 00:00:46]} {[%emt
00:00:02]} 32. Nf4 {[%clk 00:00:44]} Ke5 {[%clk 00:00:45]} {[%emt 00:00:03]} 33.
h5 {[%clk 00:00:45]} Kf6 {[%clk 00:00:46]} {[%emt 00:00:01]} 34. Kd2 {[%clk
00:00:44]} {[%emt 00:00:03]} Rd8+ {[%clk 00:00:46]} {[%emt 00:00:01]} 35. Ke2
{[%clk 00:00:45]} Kg5 {[%clk 00:00:47]} {[%emt 00:00:01]} 36. Ne6+ {[%clk
00:00:46]} {[%emt 00:00:02]} 1-0

[Event "MČR v bleskovém šachu družstev 2019"]
[Site "Teplice, Czech Republic"]
[Date "2019.09.14"]
[Round "13.18"]
[White "Dvorak, Jan"]
[Black "Hadraba, Vladimir"]
[Result "1/2-1/2"]
[TimeControl "3 mim. + 2 s"]
[WhiteFideId "314870"]
[BlackFideId "301663"]
[WhiteElo "2229"]
[BlackElo "2095"]

1. c4 {[%clk 00:03:02]} {[%emt 00:00:02]} g6 {[%clk 00:03:03]} 2. Nc3 {[%clk
00:03:00]} {[%emt 00:00:03]} Bg7 {[%clk 00:03:05]} 3. d4 {[%clk 00:03:00]}
{[%emt 00:00:02]} Nf6 {[%clk 00:03:05]} {[%emt 00:00:02]} 4. e4 {[%clk
00:03:01]} {[%emt 00:00:01]} d6 {[%clk 00:03:06]} {[%emt 00:00:01]} 5. Nge2
{[%clk 00:03:02]} {[%emt 00:00:02]} O-O {[%clk 00:03:05]} {[%emt 00:00:03]} 6.
Ng3 {[%clk 00:03:03]} {[%emt 00:00:01]} Nbd7 {[%clk 00:02:53]} {[%emt
00:00:14]} 7. Be2 {[%clk 00:03:03]} {[%emt 00:00:02]} e5 {[%clk 00:02:49]}
{[%emt 00:00:06]} 8. d5 {[%clk 00:03:04]} {[%emt 00:00:01]} a5 {[%clk
00:02:49]} {[%emt 00:00:02]} 9. h4 {[%clk 00:03:04]} {[%emt 00:00:02]} h5
{[%clk 00:02:45]} {[%emt 00:00:05]} 10. Bg5 {[%clk 00:03:05]} {[%emt 00:00:02]}
Nc5 {[%clk 00:02:42]} {[%emt 00:00:04]} 11. Qd2 {[%clk 00:03:05]} {[%emt
00:00:02]} Bd7 {[%clk 00:02:32]} {[%emt 00:00:13]} 12. O-O {[%clk 00:03:01]}
{[%emt 00:00:06]} Qe8 {[%clk 00:02:27]} {[%emt 00:00:07]} 13. f4 {[%clk
00:02:24]} {[%emt 00:00:39]} exf4 {[%clk 00:02:19]} {[%emt 00:00:10]} 14. Qxf4
{[%clk 00:02:24]} {[%emt 00:00:02]} Nh7 {[%clk 00:02:06]} {[%emt 00:00:14]} 15.
Bh6 {[%clk 00:02:25]} {[%emt 00:00:01]} Bxh6 {[%clk 00:01:55]} {[%emt
00:00:14]} 16. Qxh6 {[%clk 00:02:25]} {[%emt 00:00:01]} Qe5 {[%clk 00:01:56]}
17. Rf3 {[%clk 00:02:01]} {[%emt 00:00:27]} Bg4 {[%clk 00:01:49]} {[%emt
00:00:09]} 18. Rf4 {[%clk 00:01:52]} {[%emt 00:00:11]} Bxe2 {[%emt 00:00:10]}
19. Ngxe2 Rae8 {[%clk 00:01:31]} {[%emt 00:00:12]} 20. Raf1 {[%clk 00:01:53]}
{[%emt 00:00:02]} Qg7 {[%clk 00:01:28]} {[%emt 00:00:06]} 21. Qxg7+ {[%clk
00:01:47]} {[%emt 00:00:08]} Kxg7 {[%clk 00:01:28]} {[%emt 00:00:01]} 22. R1f3
{[%clk 00:01:38]} {[%emt 00:00:11]} Nd7 {[%clk 00:01:17]} {[%emt 00:00:13]} 23.
b3 {[%clk 00:01:34]} {[%emt 00:00:06]} Ne5 {[%clk 00:01:18]} {[%emt 00:00:01]}
24. Rf1 {[%clk 00:01:31]} {[%emt 00:00:03]} Nd3 {[%clk 00:01:00]} {[%emt
00:00:21]} 25. R4f3 {[%clk 00:01:29]} {[%emt 00:00:05]} Ne5 {[%clk 00:00:57]}
{[%emt 00:00:05]} 26. Rf4 {[%clk 00:01:27]} {[%emt 00:00:05]} Nd3 {[%emt
00:00:30]} 1/2-1/2

[Event "MČR v bleskovém šachu družstev 2019"]
[Site "Teplice, Czech Republic"]
[Date "2019.09.14"]
[Round "13.19"]
[White "Kral, David"]
[Black "Chmel, Kristian"]
[Result "1-0"]
[TimeControl "3 mim. + 2 s"]
[WhiteFideId "326097"]
[BlackFideId "344281"]
[WhiteElo "2028"]
[BlackElo "2097"]

1. d4 {[%clk 00:03:04]} {[%emt 00:03:05]} Nf6 {[%clk 00:03:02]} {[%emt
00:00:02]} 2. c4 {[%clk 00:03:05]} {[%emt 00:00:01]} g6 {[%clk 00:03:03]} 3.
Nc3 {[%clk 00:03:06]} d5 {[%clk 00:03:04]} {[%emt 00:00:01]} 4. cxd5 {[%clk
00:03:07]} {[%emt 00:00:01]} Nxd5 {[%clk 00:03:05]} {[%emt 00:00:01]} 5. e4
{[%clk 00:03:09]} Nxc3 6. bxc3 {[%clk 00:03:10]} Bg7 {[%clk 00:03:07]} 7. Bc4
{[%clk 00:03:11]} {[%emt 00:00:02]} c5 {[%clk 00:03:06]} {[%emt 00:00:02]} 8.
Ne2 {[%clk 00:03:12]} O-O {[%clk 00:03:05]} {[%emt 00:00:03]} 9. O-O {[%clk
00:03:12]} {[%emt 00:00:02]} Nc6 {[%clk 00:02:59]} {[%emt 00:00:08]} 10. Be3
{[%clk 00:03:12]} {[%emt 00:00:01]} Bd7 {[%clk 00:02:52]} {[%emt 00:00:10]} 11.
dxc5 {[%clk 00:03:07]} {[%emt 00:00:07]} Ne5 {[%clk 00:02:36]} {[%emt
00:00:18]} 12. Bd5 {[%clk 00:02:58]} {[%emt 00:00:11]} Qc7 {[%clk 00:02:30]}
{[%emt 00:00:08]} 13. Rb1 {[%clk 00:02:56]} {[%emt 00:00:04]} Bc6 {[%clk
00:02:28]} {[%emt 00:00:04]} 14. Qb3 {[%clk 00:02:48]} {[%emt 00:00:10]} Rab8
{[%clk 00:01:55]} {[%emt 00:00:35]} 15. f3 {[%clk 00:02:36]} {[%emt 00:00:14]}
e6 {[%clk 00:01:36]} {[%emt 00:00:21]} 16. Bc4 {[%emt 00:00:07]} Nxc4 17. Qxc4
{[%clk 00:02:34]} a6 {[%clk 00:00:53]} {[%emt 00:00:04]} 18. Nd4 {[%clk
00:02:27]} {[%emt 00:00:10]} Be8 {[%clk 00:00:42]} {[%emt 00:00:13]} 19. Rb6
{[%clk 00:02:19]} {[%emt 00:00:09]} e5 {[%clk 00:00:30]} {[%emt 00:00:14]} 20.
Nb3 {[%clk 00:02:04]} {[%emt 00:00:17]} Bb5 {[%clk 00:00:31]} {[%emt 00:00:01]}
21. Rxb5 {[%clk 00:02:00]} {[%emt 00:00:06]} axb5 {[%clk 00:00:32]} {[%emt
00:00:01]} 22. Qxb5 {[%clk 00:02:01]} Rfd8 {[%clk 00:00:31]} {[%emt 00:00:03]}
23. Na5 {[%clk 00:01:47]} {[%emt 00:00:17]} Bf8 {[%clk 00:00:31]} {[%emt
00:00:01]} 24. Nc4 {[%clk 00:01:45]} {[%emt 00:00:04]} Rbc8 {[%clk 00:00:22]}
{[%emt 00:00:10]} 25. Nb6 {[%clk 00:00:42]} {[%emt 00:01:06]} Bxc5 {[%clk
00:00:22]} {[%emt 00:00:02]} 26. Bxc5 {[%clk 00:00:35]} {[%emt 00:00:09]} Qxc5+
{[%clk 00:00:23]} {[%emt 00:00:01]} 27. Qxc5 {[%clk 00:00:35]} {[%emt
00:00:02]} Rxc5 {[%clk 00:00:24]} 28. Nd5 {[%clk 00:00:35]} {[%emt 00:00:02]}
Ra5 {[%clk 00:00:20]} {[%emt 00:00:06]} 29. Rb1 {[%clk 00:00:34]} {[%emt
00:00:04]} Rb8 {[%clk 00:00:11]} {[%emt 00:00:11]} 30. Rb2 {[%clk 00:00:34]}
{[%emt 00:00:01]} Rba8 {[%clk 00:00:09]} {[%emt 00:00:04]} 31. Nb4 {[%clk
00:00:31]} {[%emt 00:00:05]} b5 {[%clk 00:00:08]} {[%emt 00:00:03]} 32. Kf2
{[%clk 00:00:32]} {[%emt 00:00:01]} Rc8 {[%clk 00:00:09]} {[%emt 00:00:02]} 33.
Nd5 {[%clk 00:00:28]} {[%emt 00:00:06]} Kf8 {[%clk 00:00:07]} {[%emt 00:00:04]}
34. Ke3 {[%clk 00:00:28]} {[%emt 00:00:02]} Rca8 {[%clk 00:00:04]} {[%emt
00:00:04]} 35. Nb4 {[%clk 00:00:28]} {[%emt 00:00:02]} Rc8 {[%clk 00:00:05]}
{[%emt 00:00:01]} 36. Nd5 {[%clk 00:00:29]} {[%emt 00:00:01]} Rc4 {[%clk
00:00:05]} {[%emt 00:00:02]} 37. Kd3 {[%clk 00:00:28]} {[%emt 00:00:03]} Rc8
{[%clk 00:00:06]} {[%emt 00:00:01]} 38. Kc2 {[%clk 00:00:27]} {[%emt 00:00:04]}
Rca8 {[%clk 00:00:05]} {[%emt 00:00:02]} 39. Kb3 {[%clk 00:00:26]} {[%emt
00:00:01]} Ra4 {[%clk 00:00:04]} {[%emt 00:00:04]} 40. Nb4 {[%clk 00:00:25]}
{[%emt 00:00:04]} R8a7 {[%clk 00:00:04]} {[%emt 00:00:02]} 41. Rd2 {[%clk
00:00:26]} {[%emt 00:00:01]} Kg7 {[%clk 00:00:04]} {[%emt 00:00:02]} 42. Rd5
{[%clk 00:00:27]} {[%emt 00:00:01]} Ra3+ {[%clk 00:00:04]} {[%emt 00:00:03]} 43.
Kb2 {[%clk 00:00:28]} Rc7 {[%clk 00:00:04]} {[%emt 00:00:02]} 44. Kxa3 {[%clk
00:00:26]} {[%emt 00:00:04]} Rxc3+ {[%clk 00:00:04]} {[%emt 00:00:02]} 45. Kb2
{[%clk 00:00:27]} Re3 {[%clk 00:00:04]} {[%emt 00:00:02]} 46. Rd3 {[%clk
00:00:28]} {[%emt 00:00:01]} Re2+ {[%clk 00:00:05]} {[%emt 00:00:01]} 47. Kb3
{[%clk 00:00:27]} {[%emt 00:00:03]} Rxg2 {[%clk 00:00:05]} {[%emt 00:00:01]} 48.
Rd5 {[%clk 00:00:28]} {[%emt 00:00:03]} Rf2 {[%clk 00:00:05]} {[%emt 00:00:01]}
49. Nd3 {[%clk 00:00:25]} {[%emt 00:00:04]} Rxf3 {[%clk 00:00:06]} {[%emt
00:00:02]} 50. Kb4 {[%clk 00:00:27]} Rh3 {[%clk 00:00:06]} {[%emt 00:00:01]} 51.
Kxb5 {[%clk 00:00:28]} {[%emt 00:00:01]} f5 {[%clk 00:00:07]} {[%emt 00:00:02]}
52. exf5 {[%clk 00:00:25]} {[%emt 00:00:05]} e4 {[%clk 00:00:08]} 53. Rd7+
{[%clk 00:00:20]} {[%emt 00:00:07]} Kf6 {[%clk 00:00:08]} {[%emt 00:00:03]} 54.
fxg6 {[%clk 00:00:20]} exd3 {[%clk 00:00:07]} {[%emt 00:00:03]} 55. g7 {[%clk
00:00:19]} {[%emt 00:00:03]} Rh5+ {[%clk 00:00:05]} {[%emt 00:00:04]} 56. Kc4
{[%clk 00:00:18]} {[%emt 00:00:03]} Rg5 {[%clk 00:00:03]} {[%emt 00:00:04]} 57.
h4 {[%clk 00:00:18]} {[%emt 00:00:02]} Rg4+ {[%clk 00:00:04]} {[%emt 00:00:01]}
58. Kxd3 {[%clk 00:00:18]} {[%emt 00:00:02]} Rg3+ {[%clk 00:00:04]} {[%emt
00:00:02]} 59. Ke4 {[%clk 00:00:19]} h5 {[%clk 00:00:05]} 60. Kf4 {[%clk
00:00:20]} {[%emt 00:00:01]} Rg4+ {[%clk 00:00:06]} 61. Kf3 {[%clk 00:00:21]}
Rg1 {[%clk 00:00:07]} 62. a4 {[%clk 00:00:22]} {[%emt 00:00:01]} Rg4 {[%clk
00:00:07]} {[%emt 00:00:02]} 63. a5 {[%clk 00:00:23]} 1-0

[Event "MČR v bleskovém šachu družstev 2019"]
[Site "Teplice, Czech Republic"]
[Date "2019.09.14"]
[Round "13.21"]
[White "Liska, Jiri"]
[Black "Krejci, Jan"]
[Result "0-1"]
[TimeControl "3 mim. + 2 s"]
[WhiteTitle "FM"]
[BlackTitle "GM"]
[BlackFideId "322156"]
[WhiteElo "2241"]
[BlackElo "2527"]

1. Nf3 {[%clk 00:03:01]} {[%emt 00:00:03]} Nf6 {[%clk 00:03:04]} 2. c4 {[%clk
00:03:02]} {[%emt 00:00:01]} e6 {[%clk 00:03:05]} 3. g3 {[%clk 00:03:02]}
{[%emt 00:00:02]} d5 {[%clk 00:03:07]} 4. d4 {[%clk 00:03:03]} {[%emt
00:00:02]} dxc4 {[%clk 00:03:05]} {[%emt 00:00:04]} 5. Qa4+ {[%clk 00:03:03]}
{[%emt 00:00:02]} c6 {[%clk 00:03:00]} {[%emt 00:00:07]} 6. Qxc4 {[%clk
00:03:02]} {[%emt 00:00:03]} Be7 {[%clk 00:02:58]} {[%emt 00:00:04]} 7. Bg2
{[%clk 00:03:02]} {[%emt 00:00:01]} O-O {[%clk 00:02:59]} {[%emt 00:00:02]} 8.
O-O {[%clk 00:03:02]} {[%emt 00:00:02]} b5 {[%clk 00:03:00]} {[%emt 00:00:01]}
9. Qc2 {[%clk 00:03:01]} {[%emt 00:00:03]} Bb7 {[%clk 00:03:01]} {[%emt
00:00:01]} 10. Nbd2 {[%clk 00:02:56]} {[%emt 00:00:06]} Nbd7 {[%clk 00:03:02]}
{[%emt 00:00:02]} 11. Nb3 {[%clk 00:02:55]} {[%emt 00:00:04]} Rc8 {[%clk
00:02:59]} {[%emt 00:00:04]} 12. Ne5 {[%clk 00:02:43]} {[%emt 00:00:14]} Nxe5
{[%clk 00:02:57]} {[%emt 00:00:04]} 13. dxe5 {[%clk 00:02:43]} {[%emt
00:00:02]} Nd7 {[%clk 00:02:58]} 14. f4 {[%clk 00:02:15]} {[%emt 00:00:30]}
Qb6+ {[%clk 00:02:59]} {[%emt 00:00:01]} 15. Kh1 {[%clk 00:02:16]} {[%emt
00:00:01]} c5 {[%clk 00:03:00]} 16. e4 {[%clk 00:02:11]} {[%emt 00:00:08]} c4
{[%clk 00:02:59]} {[%emt 00:00:02]} 17. Nd2 {[%clk 00:02:08]} {[%emt 00:00:05]}
Nc5 {[%clk 00:03:00]} {[%emt 00:00:02]} 18. Nb1 {[%clk 00:01:41]} {[%emt
00:00:29]} Rfd8 {[%clk 00:02:51]} {[%emt 00:00:11]} 19. Be3 {[%clk 00:01:36]}
{[%emt 00:00:07]} Rd3 {[%clk 00:02:50]} {[%emt 00:00:02]} 20. Bg1 {[%clk
00:01:33]} {[%emt 00:00:05]} Rcd8 {[%clk 00:02:49]} {[%emt 00:00:04]} 21. a4
{[%clk 00:01:24]} {[%emt 00:00:11]} bxa4 {[%clk 00:02:34]} {[%emt 00:00:17]} 22.
Rxa4 {[%clk 00:01:13]} {[%emt 00:00:13]} Qb5 {[%clk 00:02:15]} {[%emt
00:00:21]} 23. Rxc4 {[%clk 00:01:04]} {[%emt 00:00:11]} Nb3 {[%clk 00:01:47]}
{[%emt 00:00:30]} 24. Rc7 {[%clk 00:00:46]} {[%emt 00:00:20]} Bf8 {[%clk
00:01:44]} {[%emt 00:00:05]} 25. Nc3 {[%clk 00:00:41]} {[%emt 00:00:06]} Qb4
{[%clk 00:01:42]} {[%emt 00:00:05]} 26. Bxa7 {[%clk 00:00:23]} {[%emt
00:00:20]} Rd2 {[%clk 00:01:32]} {[%emt 00:00:12]} 27. Qb1 {[%clk 00:00:23]}
{[%emt 00:00:02]} Ba6 {[%clk 00:01:27]} {[%emt 00:00:07]} 28. Re1 {[%clk
00:00:21]} {[%emt 00:00:04]} Qa5 {[%clk 00:01:17]} {[%emt 00:00:12]} 29. Rc6
{[%clk 00:00:15]} {[%emt 00:00:08]} Bb7 {[%clk 00:00:57]} {[%emt 00:00:22]} 30.
Bb6 {[%clk 00:00:15]} {[%emt 00:00:01]} Qa6 {[%clk 00:00:53]} {[%emt 00:00:06]}
31. Bxd8 {[%clk 00:00:14]} {[%emt 00:00:04]} Qxc6 {[%clk 00:00:54]} 32. Bg5
{[%clk 00:00:10]} {[%emt 00:00:06]} h6 {[%clk 00:00:55]} {[%emt 00:00:02]} 33.
Bh4 {[%clk 00:00:09]} {[%emt 00:00:02]} Nd4 {[%clk 00:00:46]} {[%emt 00:00:11]}
34. Rd1 {[%clk 00:00:10]} Rxd1+ 35. Qxd1 {[%clk 00:00:11]} Bc5 {[%clk
00:00:45]} {[%emt 00:00:02]} 36. h3 {[%emt 00:00:17]} Ba6 {[%clk 00:00:28]}
{[%emt 00:00:06]} 37. Qg4 {[%emt 00:00:06]} Kh8 38. Qh5 {[%clk 00:00:09]} Qb7
{[%clk 00:00:28]} {[%emt 00:00:02]} 39. Bf6 {[%clk 00:00:09]} {[%emt 00:00:01]}
Kh7 {[%clk 00:00:26]} {[%emt 00:00:05]} 40. f5 {[%clk 00:00:05]} {[%emt
00:00:05]} gxf6 {[%clk 00:00:24]} {[%emt 00:00:04]} 41. exf6 {[%clk 00:00:05]}
{[%emt 00:00:02]} Bf8 {[%clk 00:00:17]} {[%emt 00:00:10]} 42. fxe6 {[%clk
00:00:05]} {[%emt 00:00:02]} Nxe6 {[%clk 00:00:18]} 0-1

[Event "MČR v bleskovém šachu družstev 2019"]
[Site "Teplice, Czech Republic"]
[Date "2019.09.14"]
[Round "13.23"]
[White "Marsalek, Zdenek"]
[Black "Strasil, Pavel"]
[Result "1-0"]
[TimeControl "3 mim. + 2 s"]
[BlackFideId "308013"]
[WhiteElo "2272"]
[BlackElo "2026"]

1. d4 {[%clk 00:03:04]} {[%emt 00:00:49]} Nf6 {[%clk 00:03:01]} {[%emt
00:00:04]} 2. Nf3 {[%clk 00:03:05]} {[%emt 00:00:01]} e6 {[%clk 00:03:02]} 3.
g3 {[%clk 00:03:06]} {[%emt 00:00:01]} d5 {[%clk 00:03:03]} 4. Bg2 {[%clk
00:03:07]} c5 {[%clk 00:03:04]} 5. O-O {[%clk 00:03:07]} {[%emt 00:00:04]} Nc6
{[%clk 00:03:06]} 6. c4 {[%clk 00:03:08]} Be7 {[%clk 00:03:05]} {[%emt
00:00:05]} 7. cxd5 {[%clk 00:03:08]} {[%emt 00:00:01]} exd5 {[%clk 00:03:06]}
{[%emt 00:00:02]} 8. h3 {[%clk 00:03:08]} O-O {[%clk 00:03:07]} {[%emt
00:00:02]} 9. Nc3 {[%clk 00:03:09]} {[%emt 00:00:01]} h6 {[%clk 00:03:04]}
{[%emt 00:00:05]} 10. Be3 {[%clk 00:03:07]} {[%emt 00:00:03]} c4 {[%clk
00:03:02]} {[%emt 00:00:04]} 11. Ne5 {[%clk 00:03:07]} {[%emt 00:00:02]} a6
{[%clk 00:02:48]} {[%emt 00:00:17]} 12. f4 {[%clk 00:03:06]} {[%emt 00:00:02]}
Bf5 {[%clk 00:02:27]} {[%emt 00:00:24]} 13. g4 {[%clk 00:03:04]} {[%emt
00:00:03]} Be4 {[%clk 00:02:15]} {[%emt 00:00:15]} 14. Nxe4 {[%clk 00:02:48]}
{[%emt 00:00:18]} Nxe4 {[%clk 00:02:13]} {[%emt 00:00:04]} 15. Bxe4 {[%clk
00:02:45]} {[%emt 00:00:04]} Nxe5 {[%clk 00:02:04]} {[%emt 00:00:11]} 16. dxe5
{[%clk 00:01:55]} {[%emt 00:00:53]} dxe4 {[%clk 00:02:05]} {[%emt 00:00:01]} 17.
Qc2 {[%clk 00:01:55]} {[%emt 00:00:02]} Qd5 {[%clk 00:02:00]} {[%emt 00:00:07]}
18. Rfd1 {[%clk 00:01:51]} {[%emt 00:00:05]} Qc6 {[%clk 00:02:01]} 19. Rd4
{[%clk 00:01:51]} {[%emt 00:00:02]} Bc5 {[%clk 00:01:57]} {[%emt 00:00:07]} 20.
Rxe4 {[%clk 00:01:49]} {[%emt 00:00:04]} Bxe3+ {[%clk 00:01:57]} {[%emt
00:00:02]} 21. Rxe3 {[%clk 00:01:49]} Qc5 {[%clk 00:01:56]} {[%emt 00:00:04]}
22. Kf2 {[%clk 00:01:45]} {[%emt 00:00:05]} Rfd8 {[%clk 00:01:56]} {[%emt
00:00:03]} 23. Kf3 {[%clk 00:01:41]} {[%emt 00:00:05]} Rd4 {[%clk 00:01:52]}
{[%emt 00:00:07]} 24. b3 {[%clk 00:01:18]} {[%emt 00:00:24]} Rad8 {[%clk
00:01:51]} {[%emt 00:00:04]} 25. Rc1 {[%clk 00:01:15]} {[%emt 00:00:05]} Qd5+
{[%clk 00:01:39]} {[%emt 00:00:14]} 26. Kg3 {[%clk 00:01:06]} {[%emt 00:00:11]}
cxb3 {[%clk 00:01:34]} {[%emt 00:00:06]} 27. axb3 {[%clk 00:01:06]} {[%emt
00:00:02]} Rd2 {[%clk 00:01:19]} {[%emt 00:00:17]} 28. Qc4 {[%clk 00:01:04]}
{[%emt 00:00:04]} Qd7 {[%clk 00:01:10]} {[%emt 00:00:12]} 29. e6 {[%clk
00:01:03]} {[%emt 00:00:02]} fxe6 {[%clk 00:00:53]} {[%emt 00:00:20]} 30. Qxe6+
{[%clk 00:01:04]} Qxe6 {[%clk 00:00:53]} {[%emt 00:00:01]} 31. Rxe6 {[%clk
00:01:05]} Kf7 {[%clk 00:00:48]} {[%emt 00:00:07]} 32. Re4 {[%clk 00:01:02]}
{[%emt 00:00:05]} R8d7 {[%clk 00:00:42]} {[%emt 00:00:09]} 33. f5 {[%clk
00:01:02]} {[%emt 00:00:02]} a5 {[%clk 00:00:33]} {[%emt 00:00:11]} 34. Rc5
{[%clk 00:00:56]} {[%emt 00:00:07]} Rb2 {[%clk 00:00:31]} {[%emt 00:00:04]} 35.
Rb5 {[%clk 00:00:54]} {[%emt 00:00:04]} Kg8 {[%clk 00:00:26]} {[%emt 00:00:07]}
36. Re3 {[%clk 00:00:53]} {[%emt 00:00:03]} Ra2 {[%clk 00:00:26]} {[%emt
00:00:03]} 37. Kf3 {[%clk 00:00:51]} {[%emt 00:00:04]} Kh7 {[%clk 00:00:25]}
{[%emt 00:00:03]} 38. h4 {[%clk 00:00:51]} Ra1 {[%clk 00:00:24]} {[%emt
00:00:03]} 39. g5 {[%clk 00:00:50]} {[%emt 00:00:03]} hxg5 {[%clk 00:00:22]}
{[%emt 00:00:04]} 40. hxg5 {[%clk 00:00:51]} {[%emt 00:00:01]} Rg1 {[%clk
00:00:20]} {[%emt 00:00:04]} 41. g6+ {[%clk 00:00:47]} {[%emt 00:00:07]} Kh6
{[%clk 00:00:20]} {[%emt 00:00:02]} 42. Rxa5 {[%clk 00:00:45]} {[%emt
00:00:03]} b6 {[%clk 00:00:16]} {[%emt 00:00:06]} 43. Rb5 {[%emt 00:00:02]} Rd6
44. Kf2 {[%clk 00:00:45]} {[%emt 00:00:02]} Rg4 {[%clk 00:00:14]} {[%emt
00:00:06]} 45. Rf3 {[%clk 00:00:44]} {[%emt 00:00:03]} Rf6 {[%clk 00:00:13]}
{[%emt 00:00:04]} 46. e3 {[%clk 00:00:41]} {[%emt 00:00:05]} Kg5 {[%clk
00:00:14]} 47. b4 {[%clk 00:00:39]} {[%emt 00:00:04]} Kh4 {[%clk 00:00:11]}
{[%emt 00:00:05]} 48. Ke2 {[%clk 00:00:38]} {[%emt 00:00:02]} Rd6 {[%clk
00:00:08]} {[%emt 00:00:06]} 49. Rf1 {[%clk 00:00:33]} {[%emt 00:00:07]} Rg2+
{[%clk 00:00:08]} {[%emt 00:00:02]} 50. Kf3 {[%clk 00:00:34]} {[%emt 00:00:01]}
Rh2 {[%clk 00:00:06]} {[%emt 00:00:04]} 51. Kf4 {[%clk 00:00:33]} {[%emt
00:00:02]} Rf6 {[%clk 00:00:03]} {[%emt 00:00:06]} 52. Rd5 {[%clk 00:00:33]}
{[%emt 00:00:01]} Rg2 {[%clk 00:00:00]} {[%emt 00:00:04]} 53. Rd8 {[%clk
00:00:33]} {[%emt 00:00:02]} Rg4+ {[%clk 00:00:00]} {[%emt 00:00:01]} 54. Ke5
{[%clk 00:00:33]} {[%emt 00:00:02]} Kg5 {[%clk 00:00:00]} {[%emt 00:00:02]} 1-0